bitfinex/quotes_ETHUSD_20240607
["timestamp","ask_amount","ask_price","bid_price","bid_amount"]
[1717735815648,4.93001,3815.9,3815.5,0.028]
[1717735815975,0.55,3815.8,3815.5,0.028]
[1717735816141,1.57336468,3815.7,3815.5,0.028]
[1717735816337,2.12336468,3815.6,3815.5,0.028]
[1717735816536,2.88535024,3815.6,3815.5,0.028]
[1717735816850,3.57198556,3815.6,3815.5,0.028]
[1717735819384,2.12365237,3815.6,3815.5,0.028]
[1717735819561,1.57365237,3815.7,3815.5,0.812]
[1717735819894,2.62061,3815.9,3815.6,0.784]
[1717735820984,0.55,3815.8,3815.6,0.784]
[1717735821361,0.55,3815.8,3815.5,0.028]
[1717735822976,2.12365237,3815.8,3815.5,0.028]
[1717735823873,1.57365237,3815.9,3815.6,2.3863]
[1717735824092,1.57365237,3816.0,3815.7,1.02543]
[1717735824292,1.57365237,3816.1,3815.9,0.784]
[1717735824646,3.18683092,3816.3,3815.9,0.784]
[1717735824647,4.19400237,3816.3,3815.9,0.784]
[1717735824849,4.19400237,3816.3,3816.0,0.1237337]
[1717735825049,2.14013329,3816.4,3816.2,0.784]
[1717735825349,0.55,3816.3,3816.2,0.734]
[1717735825699,7.49,3816.5,3815.7,0.24143]
[1717735825700,0.55,3816.4,3816.0,0.784]
[1717735825854,0.55,3816.4,3816.2,0.784]
[1717735826049,1.11633886,3816.4,3816.2,0.784]
[1717735826522,0.55,3816.4,3815.6,2.3863]
[1717735826726,0.55,3816.4,3816.1,0.784]
[1717735826888,1.11637693,3816.4,3816.1,0.784]
[1717735827424,0.55,3816.4,3816.1,0.784]
[1717735829020,0.55,3816.4,3816.3,0.784]
[1717735829614,0.55,3816.6,3816.3,0.784]
[1717735830133,0.55,3816.6,3816.5,0.784]
[1717735830545,0.55,3816.6,3816.3,0.784]
[1717735830706,1.57324347,3816.8,3816.4,0.12363176]
[1717735830919,7.49,3817.1,3816.7,0.784]
[1717735830920,9.06324347,3817.1,3816.7,0.784]
[1717735831092,9.06324347,3817.1,3816.6,2.2782]
[1717735831093,7.49,3817.1,3817.0,0.784]
[1717735831408,7.49,3817.1,3817.0,0.90740007]
[1717735831784,7.49,3817.1,3817.0,0.94053983]
[1717735832199,0.04558146,3817.6,3817.0,0.94053983]
[1717735832406,4.75009195,3817.6,3817.2,0.784]
[1717735832615,1.75009195,3817.6,3817.2,0.784]
[1717735833831,0.55,3817.5,3817.2,0.784]
[1717735834055,0.55,3817.5,3817.4,0.784]
[1717735835344,1.61882308,3818.1,3817.4,0.784]
[1717735835542,6.00170539,3818.1,3817.8,0.784]
[1717735835747,4.42846192,3818.1,3817.8,0.784]
[1717735836128,3.04557961,3818.1,3817.8,0.784]
[1717735836712,0.55,3818.0,3817.8,0.784]
[1717735838211,3.0,3818.1,3817.8,0.784]
[1717735838410,2.61906,3818.2,3818.0,0.784]
[1717735839042,2.61906,3818.2,3818.1,0.15611993]
[1717735839226,6.18552443,3818.2,3818.1,0.15611993]
[1717735839438,6.18552443,3818.2,3818.0,0.784]
[1717735839628,0.55,3818.1,3818.0,0.784]
[1717735840719,0.55,3818.4,3818.0,0.784]
[1717735840952,0.55,3818.4,3818.2,0.784]
[1717735841123,1.92043343,3818.4,3818.2,0.784]
[1717735844459,0.55,3818.4,3818.2,0.784]
[1717735844620,0.55,3818.5,3818.2,0.784]
[1717735845653,0.55,3818.5,3817.4,2.61955]
[1717735845837,0.55,3818.6,3818.2,0.784]
[1717735846040,0.316875,3818.5,3818.2,0.784]
[1717735846360,0.55,3818.4,3818.2,0.784]
[1717735849089,0.55,3818.6,3818.2,0.784]
[1717735851582,0.55,3818.6,3818.4,0.784]
[1717735852795,0.55,3818.6,3818.2,0.784]
[1717735853403,0.55,3818.6,3818.4,0.784]
[1717735854797,0.55,3818.6,3817.9,2.4045]
[1717735855001,0.55,3818.6,3818.5,0.15538828]
[1717735855186,0.55,3818.6,3818.3,0.784]
[1717735855522,0.55,3818.6,3817.9,2.4045]
[1717735855523,0.55,3818.6,3818.5,0.784]
[1717735856080,0.55,3818.6,3818.5,0.93938828]
[1717735859942,3.55154655,3818.6,3818.5,0.15538828]
[1717735860112,2.61885,3818.5,3817.5,2.3043]
[1717735860313,2.61885,3818.5,3818.2,0.784]
[1717735860314,0.55,3818.4,3818.2,0.784]
[1717735860873,0.55,3818.4,3818.3,0.15502114]
[1717735861223,0.55,3818.4,3818.2,0.784]
[1717735861568,0.55,3818.4,3818.3,0.15502114]
[1717735861714,0.55,3818.4,3818.1,0.784]
[1717735862358,0.55,3818.4,3818.2,0.15502114]
[1717735863783,1.57235083,3818.4,3818.3,0.784]
[1717735863915,4.19120083,3818.5,3818.3,0.93912602]
[1717735864140,2.61885,3818.5,3818.3,0.15512602]
[1717735864472,1.57235083,3818.4,3818.3,0.784]
[1717735864846,1.57235083,3818.4,3818.3,0.93912602]
[1717735865779,2.61885,3818.5,3818.3,0.93912602]
[1717735866583,1.57235687,3818.4,3818.3,0.93912602]
[1717735866984,2.61885,3818.5,3818.3,0.93912602]
[1717735867543,3.18489629,3818.5,3818.3,0.93912602]
[1717735867772,2.61885,3818.5,3818.3,0.93912602]
[1717735868567,3.18489629,3818.5,3818.3,0.93912602]
[1717735868954,2.59285,3818.5,3818.3,0.93912602]
[1717735869667,3.15889629,3818.5,3818.3,0.93912602]
[1717735869861,2.59285,3818.5,3818.3,0.93912602]
[1717735870454,3.15889629,3818.5,3818.3,0.93912602]
[1717735870654,2.59285,3818.5,3818.3,0.93912602]
[1717735870860,0.56605069,3818.4,3818.3,0.93912602]
[1717735871457,2.59285,3818.5,3818.3,0.93912602]
[1717735872099,3.15890069,3818.5,3818.3,0.93912602]
[1717735872317,0.56605069,3818.4,3818.3,0.93912602]
[1717735873022,2.59285,3818.5,3818.3,0.93912602]
[1717735873524,0.56605286,3818.4,3818.3,0.93912602]
[1717735873725,0.56605286,3818.4,3818.3,0.15512602]
[1717735874105,0.56605286,3818.4,3818.1,0.784]
[1717735874106,2.61896,3818.3,3818.1,0.784]
[1717735874288,1.57240574,3818.2,3818.1,0.784]
[1717735875499,1.57240574,3818.2,3817.9,2.4663]
[1717735875500,1.57240574,3818.2,3818.0,0.784]
[1717735876027,1.57240574,3818.1,3818.0,0.784]
[1717735877532,2.6191,3818.1,3817.7,2.4307]
[1717735877690,2.6191,3818.1,3817.9,0.784]
[1717735878028,4.19150574,3818.1,3817.9,0.784]
[1717735878399,2.6191,3818.1,3817.9,0.784]
[1717735879333,4.19150574,3818.1,3817.9,0.784]
[1717735882137,4.19160656,3818.1,3817.9,0.784]
[1717735882344,2.6191,3818.1,3817.9,0.784]
[1717735882800,4.19160656,3818.1,3817.9,0.784]
[1717735883653,1.57250656,3818.1,3817.4,2.4843]
[1717735883829,2.61934,3817.8,3816.9,2.2716]
[1717735884011,2.61947,3817.6,3817.5,0.15514451]
[1717735884335,2.61947,3817.6,3817.4,0.784]
[1717735884728,4.19197656,3817.6,3817.4,0.784]
[1717735885040,2.61947,3817.6,3817.4,0.784]
[1717735888552,2.13860892,3817.9,3817.5,2.3622]
[1717735888731,4.75778892,3818.0,3817.8,0.784]
[1717735888931,2.61918,3818.0,3817.8,0.784]
[1717735892474,2.61918,3818.0,3817.6,0.31462]
[1717735892641,2.61918,3818.0,3817.7,0.784]
[1717735892980,4.19168656,3818.0,3817.8,0.15538519]
[1717735893278,2.61918,3818.0,3817.7,0.784]
[1717735894838,4.19168656,3818.0,3817.7,0.784]
[1717735895390,4.19168656,3818.0,3817.7,1.130082]
[1717735895391,2.61918,3818.0,3817.7,1.130082]
[1717735895545,2.61918,3818.0,3817.8,0.15538519]
[1717735895879,2.61918,3818.0,3817.7,1.130082]
[1717735899265,2.61918,3818.0,3817.9,0.784]
[1717735899688,2.61918,3818.0,3817.9,0.93931113]
[1717735899893,2.61918,3818.0,3817.9,0.784]
[1717735900267,2.61918,3818.0,3817.7,0.346082]
[1717735900467,2.61918,3818.0,3817.9,0.784]
[1717735908661,2.61918,3818.0,3817.9,3.2804]
[1717735908866,2.61918,3818.0,3817.9,3.43568027]
[1717735909953,2.61918,3818.0,3817.9,0.93928027]
[1717735911358,2.61918,3818.0,3817.9,0.15528027]
[1717735911560,2.61918,3818.0,3817.7,0.784]
[1717735911788,2.61918,3818.0,3817.8,0.15528644]
[1717735911997,4.89908,3818.0,3817.8,0.15528644]
[1717735912181,0.55,3817.9,3817.6,0.784]
[1717735913972,0.55,3817.9,3817.7,0.15528644]
[1717735914381,0.55,3817.9,3817.8,0.784]
[1717735914671,0.55,3817.9,3817.8,0.93929261]
[1717735915718,0.55,3817.9,3817.8,0.15529261]
[1717735916090,0.55,3817.9,3817.7,0.784]
[1717735916303,0.55,3817.9,3817.8,0.15529261]
[1717735916679,0.55,3817.9,3817.7,0.784]
[1717735916909,0.55,3817.9,3817.8,0.15529261]
[1717735917348,0.55,3817.9,3817.7,0.784]
[1717735917545,0.55,3817.9,3817.8,0.15529261]
[1717735918231,0.55,3817.9,3817.7,0.784]
[1717735918552,0.55,3817.9,3817.8,0.15529261]
[1717735918909,0.55,3817.9,3817.7,0.784]
[1717735919137,0.55,3817.9,3817.8,0.15529261]
[1717735919415,0.55,3817.9,3817.7,0.784]
[1717735919614,0.55,3817.9,3817.8,0.15529261]
[1717735919824,0.55,3817.9,3817.7,0.784]
[1717735920109,0.55,3817.9,3817.8,0.15529261]
[1717735920314,2.12254682,3817.9,3817.8,0.15529261]
[1717735920609,2.61931,3817.8,3817.4,0.784]
[1717735920828,4.19193369,3817.8,3817.5,0.15529261]
[1717735921226,1.57262369,3817.7,3817.5,0.15529261]
[1717735921624,4.19193369,3817.8,3817.5,0.15529261]
[1717735922534,4.19194343,3817.8,3817.5,0.15529261]
[1717735922854,2.61931,3817.8,3817.5,0.15529261]
[1717735923039,2.61931,3817.8,3817.6,0.784]
[1717735923439,2.61931,3817.8,3817.7,0.15529261]
[1717735923662,3.16931,3817.8,3817.7,0.15529261]
[1717735927258,3.16931,3817.8,3817.6,0.784]
[1717735927575,3.16931,3817.8,3817.7,0.15537901]
[1717735927738,3.16931,3817.8,3817.7,0.93937901]
[1717735927945,3.16931,3817.8,3817.7,0.784]
[1717735928140,3.16931,3817.8,3817.7,0.93937901]
[1717735928841,3.16931,3817.8,3817.7,0.15537901]
[1717735929954,3.16931,3817.8,3817.7,0.12937901]
[1717735930851,1.57255138,3818.0,3817.7,0.12937901]
[1717735931058,1.57255138,3818.0,3817.8,0.784]
[1717735931458,1.57255138,3818.1,3817.9,0.15461726]
[1717735931665,1.57255138,3818.1,3817.8,0.784]
[1717735931915,1.57255138,3818.1,3817.5,2.2511]
[1717735931916,1.57255138,3818.2,3817.9,0.15461726]
[1717735932214,1.57255138,3818.2,3818.0,0.784]
[1717735934275,1.57255138,3818.2,3817.5,2.2511]
[1717735934476,1.57255138,3818.2,3818.0,0.784]
[1717735934912,1.57255138,3818.2,3818.1,0.15449075]
[1717735935624,4.19158138,3818.3,3818.1,0.15449075]
[1717735935981,4.19158138,3818.3,3818.0,0.784]
[1717735936378,1.57255138,3818.2,3818.0,0.784]
[1717735936579,2.61903,3818.3,3818.0,0.784]
[1717735936774,1.57240898,3818.2,3818.1,0.15449075]
[1717735936991,4.19143898,3818.3,3818.1,0.15449075]
[1717735937423,4.19143898,3818.3,3818.0,0.784]
[1717735938034,2.61903,3818.3,3818.0,0.784]
[1717735938249,4.19141036,3818.3,3818.0,0.784]
[1717735943149,2.61903,3818.3,3818.2,0.784]
[1717735943446,3.16903,3818.3,3818.2,0.784]
[1717735943653,3.16903,3818.3,3818.2,0.93836115]
[1717735944146,2.13843729,3818.5,3818.2,0.93836115]
[1717735944547,2.13843729,3818.5,3818.2,0.784]
[1717735946990,1.57238036,3818.5,3818.2,0.784]
[1717735947191,1.57238036,3818.5,3818.1,0.784]
[1717735947401,1.57238036,3818.5,3817.9,2.463]
[1717735947898,1.57238036,3818.6,3817.9,2.463]
[1717735948098,0.55,3818.5,3817.9,2.463]
[1717735949424,2.12232403,3818.6,3817.9,2.463]
[1717735949561,2.12232403,3818.6,3818.0,0.15436115]
[1717735949903,2.12232403,3818.6,3817.9,2.463]
[1717735951903,1.57232403,3818.5,3817.9,2.463]
[1717735957307,1.57232403,3818.5,3818.0,0.784]
[1717735958022,1.57232403,3818.5,3818.2,0.784]
[1717735958196,7.49,3819.1,3818.3,2.61893]
[1717735958370,2.61813,3819.6,3818.4,2.3448]
[1717735958371,0.56602454,3818.7,3818.4,2.3448]
[1717735958569,1.34990993,3819.4,3818.4,2.3448]
[1717735958768,3.74275099,3819.3,3818.5,0.15426244]
[1717735959005,3.74275099,3819.3,3817.7,5.51219855]
[1717735959209,3.1835,3819.2,3818.3,0.784]
[1717735959411,0.74921609,3819.1,3818.3,0.784]
[1717735959713,0.55,3819.0,3818.4,0.15426244]
[1717735959876,0.55,3819.0,3818.3,0.784]
[1717735960077,0.55,3819.0,3818.4,0.15426244]
[1717735960277,0.4264626,3818.9,3818.3,0.784]
[1717735960477,0.55,3818.8,3818.4,0.15426244]
[1717735960679,0.55,3818.8,3818.3,0.784]
[1717735960997,0.55,3818.8,3818.4,0.15426244]
[1717735961395,0.55,3818.8,3818.3,0.784]
[1717735961797,0.55,3818.8,3818.4,0.15426244]
[1717735962311,0.55,3818.8,3818.3,0.784]
[1717735962497,0.55,3818.8,3818.4,0.15426244]
[1717735962704,0.55,3818.8,3818.3,0.784]
[1717735962911,0.55,3818.8,3818.4,0.15426244]
[1717735963078,0.55,3818.8,3818.3,0.784]
[1717735963278,0.55,3818.8,3818.4,0.15426244]
[1717735963480,0.55,3818.8,3818.3,0.784]
[1717735963778,0.55,3818.8,3818.4,0.15415444]
[1717735964211,0.55,3818.8,3818.3,0.784]
[1717735964619,0.55,3819.0,3818.4,0.15408349]
[1717735964819,0.8629789,3819.0,3818.4,0.15408349]
[1717735964994,0.8629789,3819.0,3818.3,0.784]
[1717735965395,0.8629789,3819.0,3818.4,0.15408349]
[1717735965896,0.8629789,3819.0,3818.3,0.784]
[1717735966105,0.8629789,3819.0,3818.4,0.15408349]
[1717735966285,0.8629789,3819.0,3818.3,0.784]
[1717735966615,0.8629789,3819.0,3818.4,0.15408349]
[1717735967024,0.45776049,3818.9,3818.3,0.784]
[1717735967226,0.55,3818.8,3818.3,0.784]
[1717735967434,0.8629789,3819.0,3818.4,0.15406498]
[1717735967727,0.8629789,3819.0,3818.3,0.784]
[1717735967883,0.8629789,3819.0,3818.5,0.1540804]
[1717735968087,0.8629789,3819.0,3818.3,0.784]
[1717735968318,0.55,3819.0,3818.6,0.1540804]
[1717735968517,0.55,3819.1,3818.3,0.784]
[1717735968719,0.55,3819.1,3818.7,0.1540804]
[1717735968928,0.55,3819.1,3818.3,0.784]
[1717735969144,0.55,3819.1,3818.8,0.1540804]
[1717735969285,0.635181,3819.0,3818.3,0.784]
[1717735969501,0.55,3818.9,3818.3,0.784]
[1717735969834,0.55,3819.1,3818.3,0.784]
[1717735973972,0.55,3819.1,3818.4,0.1540804]
[1717735974479,0.55,3819.1,3818.3,0.784]
[1717735974678,1.24177769,3819.1,3818.3,0.784]
[1717735974853,1.24177769,3819.1,3818.4,0.1540804]
[1717735975180,1.24177769,3819.1,3818.3,0.784]
[1717735975540,1.24177769,3819.1,3818.4,0.1540804]
[1717735975842,1.24177769,3819.1,3818.3,0.784]
[1717735976257,1.24177769,3819.1,3818.4,0.1540804]
[1717735976468,0.76095546,3819.0,3818.4,0.1540804]
[1717735976640,0.55,3818.9,3818.4,0.1540804]
[1717735977211,0.55,3819.1,3818.4,0.1540804]
[1717735979988,0.55,3819.1,3818.6,2.3121]
[1717735980386,0.55,3819.2,3818.7,0.1540434]
[1717735982687,0.55,3819.2,3818.7,0.1510434]
[1717735988470,2.61831,3819.3,3818.7,0.9350434]
[1717735988688,0.56593074,3819.4,3819.1,0.784]
[1717735988835,0.005,3819.5,3819.1,0.784]
[1717735989176,0.005,3819.5,3819.2,0.15379228]
[1717735989537,0.005,3819.5,3819.1,0.784]
[1717735989769,0.005,3819.5,3819.2,2.4408]
[1717735990883,0.531,3819.6,3819.2,2.4408]
[1717735993666,2.69941376,3819.7,3819.2,2.4408]
[1717735993867,2.69941376,3819.7,3819.3,0.1536936]
[1717735994106,2.69941376,3819.7,3819.2,2.4408]
[1717735994411,2.69941376,3819.7,3819.4,0.15369669]
[1717735994617,2.69941376,3819.7,3819.2,2.4408]
[1717735994774,2.69941376,3819.7,3819.2,2.76328]
[1717735994975,2.69941376,3819.7,3819.3,0.15369669]
[1717735995675,2.69741376,3819.7,3819.3,0.15369669]
[1717735997814,2.69741376,3819.7,3819.2,2.4408]
[1717735998279,2.69741376,3819.7,3819.3,0.1536566]
[1717735998716,2.69741376,3819.7,3819.2,2.4408]
[1717735999015,2.69741376,3819.7,3819.4,0.1536566]
[1717735999311,2.69741376,3819.7,3819.2,2.4408]
[1717735999612,2.69741376,3819.7,3819.5,0.1536566]
[1717735999839,2.69741376,3819.7,3819.2,2.4408]
[1717736000040,2.69741376,3819.7,3819.2,2.76328]
[1717736000227,2.69741376,3819.7,3819.3,0.15351165]
[1717736000626,2.69741376,3819.7,3819.2,2.76328]
[1717736000829,2.69741376,3819.7,3819.4,0.15351165]
[1717736001005,2.69741376,3819.7,3819.2,2.76328]
[1717736001205,2.69741376,3819.7,3819.5,0.15351165]
[1717736001434,2.69741376,3819.7,3818.7,2.3765]
[1717736001747,2.61816,3819.5,3818.8,0.499521]
[1717736001900,2.61816,3819.5,3818.8,0.14841724]
[1717736003701,2.61828,3819.3,3818.8,0.14841724]
[1717736005202,2.8181,3819.2,3818.8,0.14841724]
[1717736005616,2.8181,3819.2,3818.5,0.784]
[1717736005815,2.8181,3819.2,3818.9,0.14841724]
[1717736006032,2.8181,3819.2,3818.5,0.784]
[1717736006539,2.8181,3819.2,3818.6,0.14841724]
[1717736010345,2.61828,3819.3,3818.7,0.784]
[1717736010726,2.61828,3819.3,3818.8,0.14841724]
[1717736013541,2.61828,3819.3,3818.8,2.39901724]
[1717736013744,2.61828,3819.3,3818.9,0.31830172]
[1717736014111,0.04554015,3819.6,3819.2,2.2506]
[1717736014420,3.26329494,3819.7,3819.2,2.2506]
[1717736014623,2.69740376,3819.7,3819.3,0.14847251]
[1717736022463,2.69740376,3819.7,3819.4,0.14845409]
[1717736022782,2.69740376,3819.7,3819.0,2.3347]
[1717736022981,2.69740376,3819.7,3819.5,0.14845409]
[1717736023198,2.69740376,3819.7,3819.0,2.3347]
[1717736023395,2.69740376,3819.7,3819.6,0.14845409]
[1717736023601,2.69740376,3819.7,3819.0,2.3347]
[1717736023911,2.3033,3819.6,3819.0,0.573727]
[1717736024211,2.3033,3819.6,3819.1,0.14845409]
[1717736024512,2.3033,3819.6,3818.8,5.88267]
[1717736024682,2.3033,3819.6,3819.2,0.14845409]
[1717736025005,2.3033,3819.6,3818.8,5.88267]
[1717736025490,2.3033,3819.6,3818.9,0.14845409]
[1717736025689,2.3033,3819.6,3818.9,0.7515665]
[1717736027436,2.69740376,3819.7,3818.9,0.7515665]
[1717736028324,2.343,3819.6,3818.9,0.14845409]
[1717736028510,2.343,3819.6,3818.7,0.784]
[1717736028690,2.61814,3819.5,3819.0,0.14842646]
[1717736028891,2.61814,3819.5,3818.7,0.784]
[1717736029199,2.61814,3819.5,3818.8,0.14842646]
[1717736030714,2.3922,3819.3,3818.8,0.14842646]
[1717736030904,2.3922,3819.3,3818.6,0.784]
[1717736031105,2.3922,3819.3,3818.7,0.14842646]
[1717736031423,3.16836,3819.2,3818.2,2.4938]
[1717736031630,3.16836,3819.2,3818.8,0.14842646]
[1717736031828,3.16836,3819.2,3818.2,2.63081714]
[1717736031989,3.16836,3819.2,3818.9,0.14357026]
[1717736032189,4.551816,3819.2,3818.4,0.784]
[1717736032408,3.16836,3819.2,3819.0,0.14357026]
[1717736032629,3.16836,3819.2,3818.4,0.784]
[1717736032817,3.95236,3819.2,3818.2,2.4938]
[1717736033014,3.95236,3819.2,3818.5,0.14357026]
[1717736033015,2.61856,3818.9,3818.5,0.14357026]
[1717736033215,2.61856,3818.9,3818.1,0.784]
[1717736033536,2.61856,3818.9,3818.2,0.14357026]
[1717736034512,2.61856,3818.9,3818.2,0.784]
[1717736034910,2.61856,3818.9,3818.3,0.14357026]
[1717736035459,2.61871,3818.7,3818.3,0.14357026]
[1717736035659,4.94521,3818.7,3818.3,0.14357026]
[1717736035960,0.55,3818.6,3818.4,0.13901326]
[1717736036155,0.55,3818.6,3817.9,0.784]
[1717736036324,0.55,3818.6,3818.5,0.13901326]
[1717736036499,0.55,3818.6,3817.9,0.784]
[1717736036848,0.55,3818.6,3818.0,0.13901326]
[1717736037144,2.61883,3818.5,3818.0,0.13901326]
[1717736037658,2.61883,3818.5,3817.7,0.784]
[1717736037825,2.61883,3818.5,3818.1,0.13906808]
[1717736038159,2.61883,3818.5,3818.2,0.13906808]
[1717736038346,2.61883,3818.5,3817.7,0.784]
[1717736038553,2.61883,3818.5,3818.3,0.13906808]
[1717736038753,2.61883,3818.5,3817.9,0.784]
[1717736039060,2.61883,3818.5,3818.4,0.13906808]
[1717736039265,2.61883,3818.5,3817.9,0.784]
[1717736039562,2.61883,3818.5,3818.0,0.13906808]
[1717736040360,2.2972,3818.4,3817.4,2.3468]
[1717736040574,2.2972,3818.4,3818.1,0.13906808]
[1717736040721,2.2972,3818.4,3817.7,0.784]
[1717736040927,2.2972,3818.4,3818.2,0.13906808]
[1717736041175,2.2972,3818.4,3817.7,0.784]
[1717736041323,2.2972,3818.4,3818.3,0.13906808]
[1717736041531,2.2972,3818.4,3817.7,0.784]
[1717736041734,2.2972,3818.4,3818.3,0.13906808]
[1717736041968,2.2972,3818.4,3817.8,0.13216695]
[1717736042131,2.2972,3818.4,3818.3,0.13906808]
[1717736042327,2.2972,3818.4,3817.8,0.13216695]
[1717736042525,2.2972,3818.4,3818.3,0.13906808]
[1717736042766,2.2972,3818.4,3817.7,0.784]
[1717736042941,2.2972,3818.4,3817.7,0.36684695]
[1717736042942,3.16898,3818.3,3817.7,0.36684695]
[1717736043138,3.16898,3818.3,3817.7,0.784]
[1717736046555,4.98029,3818.7,3817.9,0.784]
[1717736046755,0.55,3818.6,3817.9,0.784]
[1717736048398,0.55,3818.6,3817.8,2.3086]
[1717736048399,0.55,3818.6,3818.1,0.784]
[1717736049191,0.55,3818.6,3817.9,0.784]
[1717736049393,0.55,3818.6,3818.0,0.30926]
[1717736050883,2.61869,3818.7,3818.1,0.784]
[1717736051980,2.61869,3818.7,3818.1,0.758]
[1717736052686,2.61869,3818.7,3818.0,1.09326]
[1717736052895,2.61869,3818.7,3818.0,0.784]
[1717736054294,2.61869,3818.7,3818.2,0.784]
[1717736059528,2.61869,3818.7,3817.8,2.3086]
[1717736059529,9.7731,3819.0,3818.4,0.784]
[1717736059730,9.7731,3819.0,3818.2,0.784]
[1717736060090,9.7731,3819.0,3818.2,3.1812]
[1717736060497,9.7731,3819.0,3818.3,0.13920208]
[1717736063810,2.2831,3819.0,3818.3,0.13920208]
[1717736065730,2.2831,3819.0,3818.4,0.784]
[1717736066098,2.2831,3819.0,3818.5,0.13912595]
[1717736068025,2.2831,3819.0,3818.6,0.784]
[1717736068198,2.2831,3819.0,3818.7,0.92316859]
[1717736068404,2.3223,3819.3,3818.7,0.92316859]
[1717736068637,2.3223,3819.3,3818.7,0.784]
[1717736070319,2.3223,3819.3,3818.5,0.33203259]
[1717736070514,2.3223,3819.3,3818.6,0.784]
[1717736072759,2.3223,3819.3,3818.6,3.0956]
[1717736072925,2.3223,3819.3,3818.6,3.43836326]
[1717736073124,2.3223,3819.3,3818.7,0.13912595]
[1717736081356,2.3223,3819.3,3818.7,0.92312595]
[1717736083187,2.3223,3819.3,3818.9,0.784]
[1717736083562,2.3223,3819.3,3819.0,0.13905895]
[1717736089378,2.61815,3819.5,3819.0,0.13905895]
[1717736089581,0.55,3819.4,3819.0,0.13905895]
[1717736091785,0.55,3819.4,3818.8,0.784]
[1717736092387,0.55,3819.4,3818.9,0.13902848]
[1717736093800,0.55,3819.4,3818.7,0.784]
[1717736094211,0.55,3819.4,3818.8,0.13902848]
[1717736096930,1.11589654,3819.4,3818.8,0.13902848]
[1717736097238,0.55,3819.4,3818.8,0.13902848]
[1717736100729,0.55,3819.4,3818.5,2.95082259]
[1717736101039,0.55,3819.4,3818.9,0.13904068]
[1717736101344,0.55,3819.4,3819.0,0.13904068]
[1717736101844,0.55,3819.4,3819.1,0.13904068]
[1717736102219,1.16603203,3819.4,3818.7,0.784]
[1717736102418,0.55,3819.4,3818.7,0.784]
[1717736102728,1.11589654,3819.4,3818.8,0.13904068]
[1717736103242,0.55,3819.4,3818.8,0.13904068]
[1717736104450,1.11589654,3819.4,3818.8,0.13904068]
[1717736105830,0.55,3819.4,3818.8,0.13904068]
[1717736107853,0.55,3819.4,3818.9,0.784]
[1717736108442,0.55,3819.4,3819.0,0.13904068]
[1717736113035,2.61815,3819.5,3819.0,0.13904068]
[1717736113356,0.6192703,3819.7,3819.1,0.784]
[1717736113559,0.05337376,3819.7,3819.1,1.36989]
[1717736113761,0.05337376,3819.7,3819.2,0.13901935]
[1717736114647,0.05337376,3819.7,3819.3,0.784]
[1717736115252,0.05337376,3819.7,3819.4,0.13901935]
[1717736116963,0.05337376,3819.7,3819.4,0.28991029]
[1717736117137,0.05337376,3819.7,3819.6,0.784]
[1717736117756,0.05337376,3819.7,3819.6,0.92281228]
[1717736125160,0.05337376,3819.7,3819.6,0.13881228]
[1717736125483,0.05337376,3819.7,3819.6,0.784]
[1717736125668,0.05337376,3819.7,3819.6,1.36713509]
[1717736126079,0.05337376,3819.7,3819.6,1.50563685]
[1717736130401,0.05337376,3819.7,3819.6,0.72163685]
[1717736130557,0.05337376,3819.7,3819.6,1.50563685]
[1717736133554,0.05337376,3819.7,3819.6,1.55799099]
[1717736133761,0.05337376,3819.7,3819.6,3.93483685]
[1717736135645,0.05337376,3819.7,3819.6,1.50563685]
[1717736144067,0.05337376,3819.7,3819.6,3.94903685]
[1717736146067,0.05337376,3819.7,3819.6,3.16503685]
[1717736146269,0.05337376,3819.7,3819.6,3.94903685]
[1717736146887,0.05337376,3819.7,3819.6,1.50563685]
[1717736148155,0.05337376,3819.7,3819.6,0.72163685]
[1717736148693,0.05337376,3819.7,3819.6,0.92250176]
[1717736149400,0.05337376,3819.7,3819.6,0.13850176]
[1717736149607,0.05337376,3819.7,3819.6,0.92250176]
[1717736149785,0.05337376,3819.7,3819.6,0.784]
[1717736150101,0.05337376,3819.7,3819.6,0.92225218]
[1717736150268,0.05337376,3819.7,3819.6,1.2762934]
[1717736154069,0.05337376,3819.7,3819.6,0.4922934]
[1717736154295,0.05337376,3819.7,3819.6,0.92225218]
[1717736161314,0.05337376,3819.7,3819.6,1.83179961]
[1717736161531,0.05337376,3819.7,3819.6,0.92225218]
[1717736161826,0.05337376,3819.7,3819.6,1.88414532]
[1717736162008,0.05337376,3819.7,3819.6,2.63828271]
[1717736162587,0.05337376,3819.7,3819.6,4.00258234]
[1717736162790,0.05337376,3819.7,3819.6,2.63828271]
[1717736163624,0.05337376,3819.7,3819.6,4.00258491]
[1717736164215,0.05337376,3819.7,3819.6,3.95023331]
[1717736164789,0.05337376,3819.7,3819.6,3.16623331]
[1717736165009,0.05337376,3819.7,3819.6,3.95023331]
[1717736165238,0.05337376,3819.7,3819.6,3.16623331]
[1717736165466,0.05337376,3819.7,3819.6,0.92225218]
[1717736166377,0.05337376,3819.7,3819.6,1.83180938]
[1717736166955,0.05337376,3819.7,3819.6,0.92225218]
[1717736167143,0.05337376,3819.7,3819.6,3.19606915]
[1717736167461,0.05337376,3819.7,3819.6,5.67986915]
[1717736167648,0.05337376,3819.7,3819.6,6.56447892]
[1717736168732,0.05337376,3819.7,3819.6,6.56444825]
[1717736168941,0.05337376,3819.7,3819.6,2.71637647]
[1717736169464,0.05337376,3819.7,3819.6,1.8057667]
[1717736169642,0.05337376,3819.7,3819.6,0.89625218]
[1717736169839,0.05337376,3819.7,3819.6,0.11225218]